bitfinex-derivatives/quotes_BTCF0:USTF0_20250620
["timestamp","ask_amount","ask_price","bid_price","bid_amount"]
[1750459130536,1.85066513,103290.0,103280.0,0.00336819]
[1750459130737,1.95881669,103290.0,103280.0,0.00336819]
[1750459130939,2.10434674,103290.0,103280.0,0.00336819]
[1750459131340,2.02739518,103290.0,103280.0,0.00296819]
[1750459131541,2.02739518,103290.0,103280.0,0.00336819]
[1750459131839,2.02239518,103290.0,103280.0,0.00236819]
[1750459132039,2.02339518,103290.0,103280.0,0.00536819]
[1750459132229,2.02239518,103290.0,103280.0,0.00436819]
[1750459132431,2.10016538,103290.0,103280.0,0.00536819]
[1750459133339,0.1936475,103270.0,103260.0,0.0008]
[1750459133538,1.5037635,103270.0,103260.0,0.0008]
[1750459133745,0.1936663,103260.0,103250.0,0.69896668]
[1750459134038,0.45171108,103260.0,103250.0,0.69976668]
[1750459134837,0.45171108,103260.0,103250.0,0.45766848]
[1750459135038,0.55603486,103260.0,103250.0,0.45766848]
[1750459135344,0.49948364,103260.0,103250.0,0.42856848]
[1750459135553,0.56328364,103260.0,103250.0,0.42856848]
[1750459135743,0.56328364,103260.0,103220.0,0.83019094]
[1750459135744,0.0484229,103250.0,103220.0,0.83019094]
[1750459135950,0.45176738,103230.0,103220.0,0.24419674]
[1750459136241,0.45176738,103230.0,103220.0,0.44471674]
[1750459137441,0.45176738,103230.0,103220.0,0.42716876]
[1750459137648,0.45176738,103230.0,103220.0,0.42756876]
[1750459137945,0.45176738,103230.0,103220.0,0.62131006]
[1750459138245,0.45476738,103230.0,103220.0,0.62131006]
[1750459138446,0.45576738,103230.0,103220.0,0.62131006]
[1750459139153,0.45576738,103230.0,103220.0,0.65341006]
[1750459140247,0.1977226,103230.0,103220.0,0.65341006]
[1750459141742,0.1977226,103230.0,103220.0,0.42756876]
[1750459141947,0.45576738,103230.0,103220.0,0.06676876]
[1750459142137,0.45576738,103230.0,103220.0,0.06636876]
[1750459142542,0.45576738,103230.0,103220.0,0.06676876]
[1750459143138,1.86931891,103230.0,103220.0,0.00096876]
[1750459143540,1.92681998,103230.0,103220.0,0.00136876]
[1750459143848,1.86931891,103230.0,103220.0,0.00136876]
[1750459144648,1.86831891,103230.0,103220.0,0.00136876]
[1750459144849,1.86731891,103230.0,103220.0,0.00136876]
[1750459145346,1.61127413,103230.0,103220.0,0.00136876]
[1750459145742,0.99242935,103230.0,103220.0,0.00136876]
[1750459146047,0.99242935,103230.0,103220.0,0.03276876]
[1750459146249,1.50851891,103230.0,103220.0,0.03276876]
[1750459146949,1.31479631,103230.0,103220.0,0.03276876]
[1750459147149,1.50851891,103230.0,103220.0,0.03276876]
[1750459148353,0.99242935,103230.0,103220.0,0.03276876]
[1750459148553,1.50851891,103230.0,103220.0,0.03276876]
[1750459151850,1.92681998,103230.0,103220.0,0.03276876]
[1750459158360,1.86931891,103230.0,103220.0,0.03276876]
[1750459158661,1.86931891,103230.0,103220.0,0.00136876]
[1750459160558,1.58525387,103230.0,103220.0,0.00136876]
[1750459160760,1.50851891,103230.0,103220.0,0.03326876]
[1750459161059,1.50851891,103230.0,103220.0,0.00136876]
[1750459161263,0.1937601,103210.0,103200.0,0.4548]
[1750459161462,0.50928361,103210.0,103200.0,0.0948]
[1750459161764,0.50928361,103210.0,103200.0,0.4556]
[1750459162262,0.51528361,103210.0,103200.0,0.4556]
[1750459162465,0.53072155,103210.0,103200.0,0.4556]
[1750459164566,0.53072155,103210.0,103200.0,0.0008]
[1750459164773,0.1937789,103200.0,103190.0,0.36176904]
[1750459164968,0.57260443,103200.0,103190.0,0.39346904]
[1750459165269,0.51502368,103200.0,103190.0,0.39346904]
[1750459165964,0.51702368,103200.0,103190.0,0.42506904]
[1750459166665,0.45382368,103200.0,103190.0,0.42506904]
[1750459167371,0.45982368,103200.0,103190.0,0.42506904]
[1750459169065,0.2017789,103200.0,103190.0,0.42506904]
[1750459169272,0.45982368,103200.0,103190.0,0.42506904]
[1750459169461,0.53588015,103200.0,103190.0,0.42506904]
[1750459171571,0.27783537,103200.0,103190.0,0.42506904]
[1750459171966,0.53588015,103200.0,103190.0,0.42506904]
[1750459173466,0.61261511,103200.0,103190.0,0.42506904]
[1750459173672,0.53588015,103200.0,103190.0,0.42506904]
[1750459174171,0.27783537,103200.0,103190.0,0.42506904]
[1750459174372,0.61261511,103200.0,103190.0,0.42506904]
[1750459174676,0.64461511,103200.0,103190.0,0.42506904]
[1750459175377,0.56788015,103200.0,103190.0,0.42506904]
[1750459175777,0.30983537,103200.0,103190.0,0.42506904]
[1750459175969,0.56788015,103200.0,103190.0,0.42506904]
[1750459176370,0.30983537,103200.0,103190.0,0.42506904]
[1750459176677,0.56788015,103200.0,103190.0,0.42506904]
[1750459176871,0.56788015,103200.0,103190.0,0.06426904]
[1750459177377,0.56788015,103200.0,103190.0,0.42506904]
[1750459177378,0.64461511,103200.0,103190.0,0.42506904]
[1750459177577,0.38657033,103200.0,103190.0,0.06426904]
[1750459177781,0.64461511,103200.0,103190.0,0.42506904]
[1750459179173,0.64461511,103200.0,103190.0,0.06426904]
[1750459179374,1.00541511,103200.0,103190.0,0.06426904]
[1750459181581,1.00541511,103200.0,103190.0,0.42506904]
[1750459181582,0.64461511,103200.0,103190.0,0.42506904]
[1750459182286,0.78918165,103200.0,103190.0,0.06426904]
[1750459182487,1.04722643,103200.0,103190.0,0.06426904]
[1750459182675,1.14998165,103200.0,103190.0,0.06426904]
[1750459182876,0.78918165,103200.0,103190.0,0.06426904]
[1750459183380,1.04722643,103200.0,103190.0,0.06426904]
[1750459183683,1.04722643,103200.0,103190.0,0.00096904]
[1750459183873,1.43812643,103200.0,103190.0,0.00096904]
[1750459184179,1.07732643,103200.0,103190.0,0.00096904]
[1750459184373,0.67471511,103200.0,103190.0,0.03456904]
[1750459184771,1.29355989,103200.0,103190.0,0.03456904]
[1750459185176,1.29355989,103200.0,103190.0,0.00136904]
[1750459185485,0.1937976,103190.0,103180.0,0.0993]
[1750459185687,0.45184238,103190.0,103180.0,0.0985]
[1750459185981,0.1937976,103190.0,103180.0,0.0989]
[1750459186175,0.45184238,103190.0,103180.0,0.0989]
[1750459187179,0.45184238,103190.0,103180.0,0.00193322]
[1750459187381,0.51524238,103190.0,103180.0,0.00193322]
[1750459187782,0.2651976,103190.0,103180.0,0.00193322]
[1750459187976,0.52324238,103190.0,103180.0,0.00193322]
[1750459189882,0.2651976,103190.0,103180.0,0.00193322]
[1750459190187,0.52324238,103190.0,103180.0,0.00193322]
[1750459191779,0.2651976,103190.0,103180.0,0.00193322]
[1750459192183,0.52324238,103190.0,103180.0,0.00193322]
[1750459192383,0.2651976,103190.0,103180.0,0.00193322]
[1750459192582,0.52324238,103190.0,103180.0,0.00193322]
[1750459195384,0.58088852,103190.0,103180.0,0.00193322]
[1750459195792,0.61228852,103190.0,103180.0,0.00193322]
[1750459196086,0.25944374,103190.0,103180.0,0.55654962]
[1750459196294,0.2594465,103190.0,103180.0,0.8474944]
[1750459197092,0.2594465,103190.0,103180.0,1.4875344]
[1750459202496,0.51749128,103190.0,103180.0,0.5550164]
[1750459202696,0.61279128,103190.0,103180.0,0.7191364]
[1750459203098,0.2594465,103190.0,103180.0,0.7191364]
[1750459203291,0.2594465,103190.0,103180.0,1.03998118]
[1750459203491,0.2594465,103190.0,103180.0,1.04038118]
[1750459203989,0.2594465,103190.0,103180.0,0.7823364]
[1750459204190,0.3226465,103190.0,103180.0,0.7823364]
[1750459204398,0.58069128,103190.0,103180.0,0.5550164]
[1750459204592,0.61159128,103190.0,103180.0,0.3612]
[1750459204890,0.69929988,103190.0,103180.0,0.5550164]
[1750459205094,0.69929988,103190.0,103180.0,0.3612]
[1750459205289,0.69929988,103190.0,103180.0,0.3608]
[1750459205489,0.69929988,103190.0,103180.0,0.3612]
[1750459205897,0.69929988,103190.0,103180.0,0.5550164]
[1750459206193,0.69929988,103190.0,103180.0,0.0004]
[1750459206397,0.69929988,103190.0,103180.0,0.1942164]
[1750459206598,0.4412551,103190.0,103180.0,0.5550164]
[1750459206794,0.69929988,103190.0,103180.0,0.5550164]
[1750459207398,0.4412551,103190.0,103180.0,0.5550164]
[1750459207601,0.69929988,103190.0,103180.0,0.5550164]
[1750459207790,0.4412551,103190.0,103180.0,0.5550164]
[1750459207990,0.69929988,103190.0,103180.0,0.5550164]
[1750459209702,0.69929988,103190.0,103180.0,0.0004]
[1750459209892,0.51799006,103190.0,103180.0,0.0004]
[1750459210098,0.51799006,103190.0,103180.0,0.1942164]
[1750459210400,0.77603484,103190.0,103180.0,0.5546164]
[1750459210703,0.72758134,103190.0,103180.0,0.5550164]
[1750459211099,0.72758134,103190.0,103180.0,0.57234154]
[1750459211397,0.46953656,103190.0,103180.0,0.57234154]
[1750459211595,0.72758134,103190.0,103180.0,0.57234154]
[1750459213505,0.2649977,103190.0,103180.0,0.57234154]
[1750459213707,0.06565917,103190.0,103180.0,1.66576632]
[1750459213902,0.06565917,103190.0,103180.0,1.72876632]
[1750459215101,0.25945687,103190.0,103180.0,1.47072154]
[1750459217304,0.28975687,103190.0,103180.0,1.47072154]
[1750459218704,0.25945687,103190.0,103180.0,1.72876632]
[1750459220407,0.06565917,103190.0,103180.0,1.72876632]
[1750459220998,0.008,103190.0,103180.0,1.72876632]
[1750459223206,0.07605647,103200.0,103190.0,0.1937976]
[1750459223401,0.36175121,103210.0,103200.0,0.1937789]
[1750459223706,0.36175121,103210.0,103200.0,1.73276287]
[1750459223909,0.36175121,103210.0,103200.0,1.47471809]
[1750459224495,0.26486581,103210.0,103200.0,1.47471809]
[1750459224700,0.01343794,103210.0,103200.0,1.73276287]
[1750459224900,0.74847735,103220.0,103210.0,0.1937601]
[1750459225101,0.50310505,103220.0,103210.0,0.5868601]
[1750459226212,0.45466565,103220.0,103210.0,0.5868601]
[1750459227414,0.45566565,103220.0,103210.0,0.5878601]
[1750459227912,0.45766565,103220.0,103210.0,0.5918601]
[1750459228904,0.42506565,103220.0,103210.0,0.5918601]
[1750459229106,0.42506565,103220.0,103210.0,0.6225601]
[1750459230815,0.42506565,103220.0,103210.0,0.9833601]
[1750459233022,0.31552765,103220.0,103210.0,1.24140488]
[1750459233228,0.07333165,103220.0,103210.0,1.24140488]
[1750459233525,0.01567248,103220.0,103210.0,1.24140488]
[1750459233821,0.003,103220.0,103210.0,1.24140488]
[1750459234425,0.003,103220.0,103210.0,1.43517288]
[1750459236029,0.003,103220.0,103210.0,1.1771281]
[1750459236218,0.003,103220.0,103210.0,1.43517288]
[1750459240027,0.003,103220.0,103210.0,1.24140488]
[1750459240229,0.003,103220.0,103210.0,0.9833601]
[1750459240428,0.003,103220.0,103210.0,1.24140488]
[1750459244227,0.35181955,103230.0,103220.0,0.21132]
[1750459244429,0.35181955,103230.0,103220.0,1.62628478]
[1750459244628,0.30338885,103230.0,103220.0,1.62628478]
[1750459244829,0.31648077,103230.0,103220.0,1.62628478]
[1750459245432,0.31848077,103230.0,103220.0,1.37224]
[1750459246626,0.31948077,103230.0,103220.0,1.37324]
[1750459248341,0.31948077,103230.0,103220.0,0.57712]
[1750459248531,0.63518472,103230.0,103220.0,0.57712]
[1750459248840,0.63518472,103230.0,103220.0,0.57752]
[1750459249041,0.63518472,103230.0,103220.0,0.0054]
[1750459249042,0.8932295,103230.0,103220.0,0.0054]
[1750459249229,0.83557033,103230.0,103220.0,0.005]
[1750459249736,0.83557033,103230.0,103220.0,0.0054]
[1750459252335,0.57752555,103230.0,103220.0,0.5599413]
[1750459252630,0.57752555,103230.0,103220.0,0.1991413]
[1750459252840,0.57752555,103230.0,103220.0,0.5599413]
[1750459253133,0.57752555,103230.0,103220.0,0.1991413]
[1750459254228,0.57652555,103230.0,103220.0,0.1981413]
[1750459254541,0.57652555,103230.0,103220.0,0.1971413]
[1750459254935,0.57652555,103230.0,103220.0,0.0034]
[1750459256035,1.3075903,103230.0,103220.0,0.0034]
[1750459256239,1.5013423,103230.0,103220.0,0.003]
[1750459256440,1.5013423,103230.0,103220.0,0.0034]
[1750459257235,1.57807726,103230.0,103220.0,0.0034]
[1750459258042,1.32003248,103230.0,103220.0,0.0034]
[1750459258535,1.57807726,103230.0,103220.0,0.0034]
[1750459260147,1.38432526,103230.0,103220.0,0.0034]
[1750459260442,1.02352526,103230.0,103220.0,0.0034]
[1750459260640,1.38432526,103230.0,103220.0,0.0034]
[1750459261041,1.02352526,103230.0,103220.0,0.0034]
[1750459262146,1.38432526,103230.0,103220.0,0.0034]
[1750459264352,1.02352526,103230.0,103220.0,0.0034]
[1750459264653,1.38432526,103230.0,103220.0,0.0034]
[1750459264848,0.1937601,103210.0,103200.0,0.3582]
[1750459265044,0.2906842,103200.0,103190.0,0.1937977]
[1750459265244,0.7482479,103200.0,103190.0,0.1937977]
[1750459265451,0.7482479,103200.0,103190.0,0.1941977]
[1750459266044,0.7482479,103200.0,103190.0,0.1951977]
[1750459266245,0.82602742,103200.0,103190.0,0.1951977]
[1750459267153,0.82702742,103200.0,103190.0,0.1971977]
[1750459267746,0.56898264,103200.0,103190.0,0.1971977]
[1750459267946,0.82602742,103200.0,103190.0,0.1961977]
[1750459268143,0.13924964,103200.0,103190.0,0.1971977]
[1750459268349,0.27555832,103200.0,103190.0,0.87664248]
[1750459269157,0.08177952,103200.0,103190.0,0.87664248]
[1750459269348,0.27555842,103200.0,103190.0,0.87664248]
[1750459272155,0.5336032,103200.0,103190.0,0.6181977]
[1750459272860,0.59107332,103200.0,103190.0,0.6181977]
[1750459273054,0.59107332,103200.0,103190.0,0.6185977]
[1750459273256,0.5643032,103200.0,103190.0,0.6181977]
[1750459273561,0.62177332,103200.0,103190.0,0.6185977]
[1750459274251,0.62177332,103200.0,103190.0,0.5880977]
[1750459274454,0.65297332,103200.0,103190.0,0.7273177]
[1750459274648,0.65297332,103200.0,103190.0,0.7269177]
[1750459275052,0.65297332,103200.0,103190.0,0.7273177]
[1750459275758,0.65297332,103200.0,103190.0,0.7588177]
[1750459277650,0.65297332,103200.0,103190.0,0.3980177]
[1750459278258,0.65297332,103200.0,103190.0,0.2286977]
[1750459278465,0.49694831,103200.0,103190.0,0.3980577]
[1750459279662,0.49694831,103200.0,103190.0,0.2286977]
[1750459279869,1.11579309,103200.0,103190.0,0.0034]
[1750459280067,0.57508537,103200.0,103190.0,0.1971976]
[1750459280360,0.57508537,103200.0,103190.0,0.0034]
[1750459280563,1.86067734,103200.0,103190.0,0.0034]
[1750459280768,1.86067734,103200.0,103190.0,0.003]
[1750459280972,1.86067734,103200.0,103190.0,0.0034]
[1750459282071,1.86267734,103200.0,103190.0,0.0034]
[1750459282568,1.86267734,103200.0,103190.0,0.0014]
[1750459282775,1.86367734,103200.0,103190.0,0.0024]
[1750459283463,1.34758778,103200.0,103190.0,0.0024]
[1750459283772,1.86367734,103200.0,103190.0,0.0024]
[1750459290479,1.34758778,103200.0,103190.0,0.0024]
[1750459290779,1.86367734,103200.0,103190.0,0.0024]
[1750459290967,0.85531734,103200.0,103190.0,0.0024]
[1750459291165,0.48941525,103200.0,103190.0,0.5569976]
[1750459291371,0.48941525,103200.0,103190.0,0.6190976]
[1750459292377,0.48941525,103200.0,103190.0,0.2582976]
[1750459292878,0.56607256,103200.0,103190.0,0.0645]
[1750459293079,0.59817256,103200.0,103190.0,0.0335]
[1750459294075,0.95897256,103200.0,103190.0,0.0335]
[1750459295278,0.95897256,103200.0,103190.0,0.2272976]
[1750459295478,0.70092778,103200.0,103190.0,0.0335]
[1750459295679,0.95897256,103200.0,103190.0,0.0335]
[1750459296883,0.95897256,103200.0,103190.0,0.0024]
[1750459297385,0.70092778,103200.0,103190.0,0.0024]
[1750459297577,0.95897256,103200.0,103190.0,0.0024]
[1750459300387,0.95897256,103200.0,103190.0,0.0324]
[1750459301286,0.70092778,103200.0,103190.0,0.0324]
[1750459301484,0.95897256,103200.0,103190.0,0.0324]
[1750459301883,0.70092778,103200.0,103190.0,0.0324]
[1750459302188,0.95897256,103200.0,103190.0,0.0324]
[1750459302487,0.70092778,103200.0,103190.0,0.0324]
[1750459302690,0.95897256,103200.0,103190.0,0.0324]
[1750459305085,0.70092778,103200.0,103190.0,0.2261977]
[1750459305285,0.95897256,103200.0,103190.0,0.2261977]
[1750459305484,0.95897256,103200.0,103190.0,0.0324]
[1750459308487,0.95897256,103200.0,103190.0,0.2261977]
[1750459308793,0.56607256,103200.0,103190.0,0.2261977]
[1750459315784,0.30802778,103200.0,103190.0,0.5869977]
[1750459315989,0.27732778,103200.0,103190.0,0.91074248]
[1750459316194,0.27732778,103200.0,103190.0,0.6526977]
[1750459316589,0.08605434,103200.0,103190.0,0.6526977]
[1750459316791,0.31003324,103200.0,103190.0,0.6526977]
[1750459316990,0.56807802,103200.0,103190.0,0.6526977]
[1750459318495,0.49142071,103200.0,103190.0,0.6526977]
[1750459319093,0.74946549,103200.0,103190.0,0.0324]
[1750459319300,1.2190228,103200.0,103190.0,0.0024]
[1750459320190,1.2190228,103200.0,103190.0,0.002]
[1750459320591,1.2190228,103200.0,103190.0,0.0024]
[1750459321494,0.8582228,103200.0,103190.0,0.0024]
[1750459321694,0.8582228,103200.0,103190.0,0.002]
[1750459321890,0.8582228,103200.0,103190.0,0.0024]
[1750459322893,1.2190228,103200.0,103190.0,0.0024]
[1750459323086,1.39339387,103200.0,103190.0,0.0024]
[1750459323292,0.1938352,103170.0,103160.0,0.89016272]
[1750459323489,0.25143864,103170.0,103160.0,0.85846272]
[1750459323801,0.57058342,103170.0,103160.0,0.85846272]
[1750459324102,0.57058342,103170.0,103160.0,0.85886272]
[1750459324298,0.31253864,103170.0,103160.0,0.89196272]
[1750459324494,0.31353864,103170.0,103160.0,0.89396272]
[1750459324997,0.35416719,103170.0,103160.0,0.89396272]
[1750459325300,0.35516719,103170.0,103160.0,0.89996272]
[1750459325502,0.35516719,103170.0,103160.0,0.44223612]
[1750459325697,0.64481197,103170.0,103160.0,0.24798932]
[1750459325900,0.64481197,103170.0,103160.0,0.18228932]
[1750459326293,0.38676719,103170.0,103160.0,0.18188932]
[1750459326488,0.38676719,103170.0,103160.0,0.37574332]
[1750459327096,0.64481197,103170.0,103160.0,0.37614332]
[1750459327293,0.68996375,103170.0,103160.0,0.00936932]
[1750459327499,0.7974986,103170.0,103160.0,0.00936932]
[1750459327696,0.87430318,103170.0,103160.0,0.00896932]
[1750459328105,0.87430318,103170.0,103160.0,0.00936932]
[1750459328312,1.13034796,103170.0,103160.0,0.00136932]
[1750459328604,0.76676833,103170.0,103160.0,0.19622332]
[1750459328808,0.68996375,103170.0,103160.0,0.19622332]
[1750459328998,0.94800853,103170.0,103160.0,0.19622332]
[1750459329397,0.94700853,103170.0,103160.0,0.19522332]
[1750459329612,0.69196375,103170.0,103160.0,0.19622332]
[1750459329795,0.95000853,103170.0,103160.0,0.19622332]
[1750459330111,0.69196375,103170.0,103160.0,0.19622332]
[1750459330309,0.94900853,103170.0,103160.0,0.19622332]
[1750459330610,1.0074562,103170.0,103160.0,0.00236932]
[1750459330808,1.31660996,103170.0,103160.0,0.00236932]
[1750459331309,1.5026804,103170.0,103160.0,0.00236932]
[1750459331504,1.76072518,103170.0,103160.0,0.00236932]
[1750459331705,1.65216853,103170.0,103160.0,0.00236932]
[1750459333001,1.70810842,103170.0,103160.0,0.19622292]
[1750459333505,1.45006364,103170.0,103160.0,0.19622292]
[1750459333700,1.70810842,103170.0,103160.0,0.00236932]
[1750459333896,1.70810842,103170.0,103160.0,0.19622292]
[1750459334902,1.00742842,103170.0,103160.0,0.19622292]
[1750459335607,0.64662842,103170.0,103160.0,0.19622292]
[1750459336306,0.38858364,103170.0,103160.0,0.19622292]
[1750459336500,0.64662842,103170.0,103160.0,0.19622292]
[1750459336711,0.64662842,103170.0,103160.0,0.22652292]
[1750459337013,0.38858364,103170.0,103160.0,0.22652292]
[1750459337312,0.35698364,103170.0,103160.0,0.4845677]
[1750459337513,0.23846335,103170.0,103160.0,0.89463041]
[1750459337707,0.004,103170.0,103160.0,0.89463041]
[1750459337916,0.004,103170.0,103160.0,1.7879344]
[1750459338606,0.1978348,103170.0,103160.0,1.7879344]
[1750459338806,0.004,103170.0,103160.0,1.7879344]
[1750459339711,0.1978348,103170.0,103160.0,1.59407041]
[1750459339905,0.2291348,103170.0,103160.0,1.59407041]
[1750459341114,0.2291348,103170.0,103160.0,1.33602563]
[1750459341415,0.2291348,103170.0,103160.0,1.59407041]
[1750459341916,0.48717958,103170.0,103160.0,0.75162292]
[1750459342117,0.2918348,103170.0,103160.0,0.55702292]
[1750459342318,0.54987958,103170.0,103160.0,0.55662292]
[1750459342518,0.2918348,103170.0,103160.0,0.55702292]
[1750459343716,0.54987958,103170.0,103160.0,0.55702292]
[1750459344817,0.71972485,103170.0,103160.0,0.55702292]
[1750459345020,0.60729947,103170.0,103160.0,0.36316932]
[1750459345221,0.60729947,103170.0,103160.0,0.36276932]
[1750459345415,0.60729947,103170.0,103160.0,0.36316932]
[1750459345719,0.60729947,103170.0,103160.0,0.55702292]
[1750459345917,0.60729947,103170.0,103160.0,0.36316932]
[1750459346420,0.60729947,103170.0,103150.0,0.06924]
[1750459346421,0.1938536,103160.0,103150.0,0.06924]
[1750459346717,0.67618244,103160.0,103150.0,0.2623124]
[1750459346916,0.93422722,103160.0,103150.0,0.06884]
[1750459347117,0.87679838,103160.0,103150.0,0.06884]
[1750459347714,0.87679838,103160.0,103150.0,0.06984]
[1750459347715,0.67717727,103160.0,103150.0,0.06984]
[1750459347913,0.93522205,103160.0,103150.0,0.06984]
[1750459348114,0.87779838,103160.0,103150.0,0.06984]
[1750459348317,1.06541582,103160.0,103150.0,0.06984]
[1750459348818,1.06641582,103160.0,103150.0,0.07144]
[1750459349018,1.06641582,103160.0,103150.0,0.07184]
[1750459349817,1.76921582,103160.0,103150.0,0.07184]
[1750459350721,1.69241124,103160.0,103150.0,0.07184]
[1750459354016,1.94241124,103160.0,103150.0,0.07184]
[1750459354220,1.88629124,103160.0,103150.0,0.07184]
[1750459354619,0.1939099,103130.0,103120.0,0.05801388]
[1750459354916,0.81275468,103130.0,103120.0,0.00879423]
[1750459355110,0.87615468,103130.0,103120.0,0.00879423]
[1750459355313,0.87615468,103130.0,103120.0,0.20272303]
[1750459355822,0.87715468,103130.0,103120.0,0.20872303]
[1750459356425,0.87815468,103130.0,103120.0,0.20872303]
[1750459357023,0.87715468,103130.0,103120.0,0.20872303]
[1750459357324,0.87815468,103130.0,103120.0,0.20672303]
[1750459357823,0.92387958,103130.0,103120.0,0.23722303]
[1750459358025,1.03397849,103130.0,103120.0,0.01279423]
[1750459358221,1.09737849,103130.0,103120.0,0.01279423]
[1750459359426,1.09737849,103130.0,103120.0,0.20672303]
[1750459360525,0.83933371,103130.0,103120.0,0.20672303]
[1750459360725,1.09737849,103130.0,103120.0,0.01279423]
[1750459361226,1.09737849,103130.0,103120.0,0.20632303]
[1750459361424,1.09737849,103130.0,103120.0,0.20672303]
[1750459361625,1.09737849,103130.0,103120.0,0.01279423]
[1750459361824,1.09737849,103130.0,103120.0,0.22444584]
[1750459362622,0.1939288,103120.0,103110.0,0.0008]
[1750459362817,0.1939476,103110.0,103100.0,0.35490609]
[1750459363017,0.45199238,103110.0,103100.0,0.38590609]
[1750459363219,1.07083716,103110.0,103100.0,0.00176989]
[1750459363418,1.07083716,103110.0,103100.0,0.25873639]
[1750459363618,1.07083716,103110.0,103100.0,0.64973639]
[1750459363619,0.45199238,103110.0,103100.0,0.64973639]
[1750459364021,0.1949477,103110.0,103100.0,1.05724717]
[1750459364321,0.45299248,103110.0,103100.0,0.79920239]
[1750459364922,0.59716413,103110.0,103100.0,0.55098117]
[1750459365128,0.23636413,103110.0,103100.0,0.91178117]
[1750459365323,0.49440891,103110.0,103100.0,0.65373639]
[1750459366129,0.49540891,103110.0,103100.0,0.65373639]
[1750459366621,0.49540891,103110.0,103100.0,0.29293639]
[1750459366827,0.49540891,103110.0,103100.0,0.65373639]
[1750459368828,0.23736413,103110.0,103100.0,0.91178117]
[1750459369430,0.23736413,103110.0,103100.0,0.65373639]
[1750459369629,0.23736413,103110.0,103100.0,0.91178117]
[1750459370522,0.49540891,103110.0,103100.0,0.19973639]
[1750459370827,0.52760891,103110.0,103100.0,0.19973639]
[1750459371028,0.52760891,103110.0,103100.0,0.26423639]
[1750459371222,0.78565369,103110.0,103100.0,0.26423639]
[1750459371427,0.52760891,103110.0,103100.0,0.26423639]
[1750459372030,0.52760891,103110.0,103100.0,0.45835639]
[1750459374133,0.88840891,103110.0,103100.0,0.45835639]
[1750459374321,0.52760891,103110.0,103100.0,0.45835639]
[1750459374929,0.002,103110.0,103100.0,0.45835639]
[1750459375130,0.6314376,103130.0,103120.0,0.1939289]
[1750459375431,0.52868238,103130.0,103120.0,0.3880489]
[1750459375626,0.52868238,103130.0,103120.0,0.4500489]
[1750459376328,0.52868238,103130.0,103120.0,0.8108489]
[1750459376529,0.57605967,103130.0,103120.0,0.8108489]
[1750459376822,0.4228185,103130.0,103120.0,0.8108489]
[1750459377136,0.12239643,103130.0,103120.0,0.8108489]
[1750459377430,0.20146341,103130.0,103120.0,0.8108489]
[1750459377733,0.45950819,103130.0,103120.0,0.8108489]
[1750459378330,0.20146341,103130.0,103120.0,0.8108489]
[1750459378534,0.45950819,103130.0,103120.0,0.8108489]
[1750459379936,0.20146341,103130.0,103120.0,0.8108489]
[1750459380130,0.50146078,103130.0,103120.0,0.4500489]
[1750459380433,0.50146078,103130.0,103120.0,0.8108489]
[1750459380934,0.50146078,103130.0,103120.0,0.4500489]
[1750459381237,0.635416,103130.0,103120.0,0.1943289]
[1750459381439,0.95596078,103130.0,103120.0,0.1943289]
[1750459381631,0.59516078,103130.0,103120.0,0.1943289]
[1750459381937,0.95596078,103130.0,103120.0,0.1943289]
[1750459382332,0.95596078,103130.0,103120.0,0.1939289]
[1750459382532,0.95596078,103130.0,103120.0,0.1943289]
[1750459386436,0.697916,103130.0,103120.0,0.1943289]
[1750459386737,0.95596078,103130.0,103120.0,0.1943289]
[1750459387342,0.92516078,103130.0,103120.0,0.1943289]
[1750459387529,0.89346078,103130.0,103120.0,0.1943289]
[1750459387733,0.89346078,103130.0,103120.0,0.2548289]
[1750459387935,0.635416,103130.0,103120.0,0.2548289]
[1750459388140,0.89346078,103130.0,103120.0,0.2548289]
[1750459388344,0.89346078,103130.0,103120.0,0.2243289]
[1750459388642,0.668316,103130.0,103120.0,0.9217689]
[1750459388941,0.92636078,103130.0,103120.0,0.9221689]
[1750459389342,0.668316,103130.0,103120.0,0.9221689]
[1750459389540,0.92636078,103130.0,103120.0,0.9221689]
[1750459389841,0.668316,103130.0,103120.0,0.9221689]
[1750459390042,0.92636078,103130.0,103120.0,0.9221689]
[1750459390342,0.92636078,103130.0,103120.0,0.2243289]
[1750459390545,0.668316,103130.0,103120.0,0.4204489]
[1750459390743,0.92636078,103130.0,103120.0,0.4204489]
[1750459391244,0.668316,103130.0,103120.0,0.4204489]
[1750459391440,0.89346078,103130.0,103120.0,0.4204489]
[1750459391651,0.006,103130.0,103120.0,0.84317368]
[1750459391846,0.2741554,103150.0,103140.0,0.1938914]
[1750459392145,0.45193138,103150.0,103140.0,0.8903714]
[1750459392338,0.1938866,103150.0,103140.0,1.33042805]
[1750459392641,0.61612844,103160.0,103150.0,0.1938725]
[1750459392837,0.53142068,103160.0,103150.0,0.4540925]
[1750459393039,0.58191888,103170.0,103160.0,0.1938537]
[1750459393349,0.61371888,103170.0,103160.0,0.2253537]
[1750459393740,0.6595603,103170.0,103160.0,0.2253537]
[1750459393938,0.5626399,103170.0,103160.0,1.32930053]
[1750459394142,0.5308399,103170.0,103160.0,1.32930053]
[1750459394646,0.5328399,103170.0,103160.0,0.96950053]
[1750459394838,0.27479512,103170.0,103160.0,0.96950053]
[1750459395038,0.5328399,103170.0,103160.0,0.96950053]
[1750459395542,0.45389848,103170.0,103160.0,0.96950053]
[1750459395949,0.45489848,103170.0,103160.0,0.97150053]
[1750459396444,0.8510841,103170.0,103160.0,0.24580053]
[1750459396647,0.5533841,103170.0,103160.0,1.13532053]
[1750459396846,0.29533932,103170.0,103160.0,1.13572053]
[1750459397052,0.5533841,103170.0,103160.0,1.13572053]
[1750459397545,0.29533932,103170.0,103160.0,1.13572053]
[1750459397745,0.51799848,103170.0,103160.0,1.13572053]
[1750459398044,0.5532009,103170.0,103160.0,1.13572053]
[1750459398244,0.51799848,103170.0,103160.0,1.13572053]
[1750459398648,0.59449481,103170.0,103160.0,0.1972537]
[1750459398948,1.3212566,103170.0,103160.0,0.0034]
[1750459399148,1.3212566,103170.0,103160.0,0.003]
[1750459399547,0.80516704,103170.0,103160.0,0.197254]
[1750459399744,0.37198274,103170.0,103160.0,0.393334]
[1750459399939,0.11229633,103170.0,103160.0,0.426034]
[1750459400145,0.0358,103170.0,103160.0,0.426034]
[1750459400446,0.48767998,103170.0,103160.0,0.426034]
[1750459400645,0.48767998,103170.0,103160.0,0.456734]
[1750459401553,0.48767998,103170.0,103160.0,0.393334]
[1750459401754,0.91439016,103170.0,103160.0,1.083414]
[1750459401947,0.91439016,103170.0,103160.0,0.197254]
[1750459402452,0.91439016,103170.0,103160.0,0.393334]
[1750459402847,0.91439016,103170.0,103160.0,0.392934]
[1750459403050,0.91439016,103170.0,103160.0,0.393334]
[1750459403350,1.17243494,103170.0,103160.0,0.393334]
[1750459403750,1.17243494,103170.0,103160.0,0.392934]
[1750459403950,1.17243494,103170.0,103160.0,0.393334]
[1750459404552,1.17243494,103170.0,103160.0,0.197254]